fUSD/lending_fUSD_20250804
["ID","MTS","AMOUNT","RATE_DAILY","PERIOD"]
[377171548,1754266284943,-400.0,0.0005041,120]
[377171549,1754266284953,-1088.89,0.0005041,120]
[377171550,1754266284963,-636.85,0.0005041,120]
[377171551,1754266284973,-400.0,0.0005041,120]
[377171552,1754266284983,-400.0,0.0005041,120]
[377171553,1754266284992,-472.66,0.0005041,120]
[377171554,1754266285002,-642.71,0.0005041,120]
[377171555,1754266285012,-518.14,0.0005041,120]
[377171556,1754266285021,-400.0,0.0005041,120]
[377171557,1754266285030,-400.0,0.0005041,120]
[377171558,1754266285040,-400.0,0.0005041,120]
[377171559,1754266285049,-400.0,0.0005041,120]
[377171560,1754266285058,-496.99156811,0.0005041,120]
[377171561,1754266285067,-400.0,0.0005041,120]
[377171562,1754266285077,-400.0,0.0005041,120]
[377171563,1754266285086,-200.85729553,0.0005041,120]
[377171564,1754266285095,-400.0,0.0005041,120]
[377171565,1754266285105,-151.0,0.0005041,120]
[377171566,1754266285114,-589.66,0.0005041,120]
[377171567,1754266285123,-598.98,0.0005041,120]
[377171568,1754266285132,-1237.18,0.0005041,120]
[377171569,1754266285141,-400.0,0.0005041,120]
[377171570,1754266285150,-834.12,0.0005041,120]
[377171571,1754266285159,-474.21,0.0005041,120]
[377171572,1754266285169,-824.86,0.0005041,120]
[377171573,1754266285178,-400.0,0.0005041,120]
[377171574,1754266285188,-527.51,0.0005041,120]
[377171575,1754266285201,-613.0,0.0005041,120]
[377171576,1754266285210,-1159.81,0.0005041,120]
[377171577,1754266285219,-614.61,0.0005041,120]
[377171578,1754266285228,-400.0,0.0005041,120]
[377171579,1754266285238,-1017.09,0.0005041,30]
[377171580,1754266285247,-712.71,0.0005041,120]
[377171581,1754266285257,-1351.92,0.0005041,120]
[377171582,1754266285266,-1114.0,0.0005041,120]
[377171583,1754266285278,-400.0,0.0005041,120]
[377171584,1754266285288,-430.13,0.0005041,120]
[377171585,1754266285297,-398.55821134,0.0005041,120]
[377171586,1754266285306,-511.91,0.0005041,120]
[377171587,1754266285316,-400.0,0.0005041,120]
[377171588,1754266285325,-238.52305581,0.0005041,120]
[377171589,1754266285335,-870.8,0.0005041,120]
[377171590,1754266285344,-400.0,0.0005041,120]
[377171591,1754266285353,-690.24,0.0005041,120]
[377171592,1754266285363,-400.0,0.0005041,120]
[377171593,1754266285373,-888.12,0.0005041,120]
[377171594,1754266285382,-400.0,0.0005041,120]
[377171595,1754266285391,-552.02,0.0005041,120]
[377171596,1754266285400,-751.35,0.0005041,120]
[377171597,1754266285410,-400.0,0.0005041,120]
[377171598,1754266285420,-795.25,0.0005041,120]
[377171599,1754266285429,-413.15,0.0005041,120]
[377171600,1754266285438,-1388.21,0.0005041,120]
[377171601,1754266285447,-551.22,0.0005041,120]
[377171602,1754266285457,-709.36,0.0005041,120]
[377171603,1754266285466,-974.26,0.0005041,120]
[377171604,1754266285475,-400.0,0.0005041,120]
[377171605,1754266285485,-400.0,0.0005041,120]
[377171606,1754266285494,-714.51,0.0005041,120]
[377171607,1754266285504,-572.06,0.0005041,120]
[377171608,1754266285513,-151.0,0.0005041,120]
[377171609,1754266285523,-400.0,0.0005041,120]
[377171610,1754266285532,-704.87,0.0005041,120]
[377171611,1754266285541,-400.0,0.0005041,120]
[377171612,1754266285552,-400.0,0.0005041,120]
[377171613,1754266285562,-901.25,0.0005041,120]
[377171614,1754266285571,-525.07,0.0005041,120]
[377171615,1754266285580,-510.06,0.0005041,120]
[377171616,1754266285589,-499.3,0.0005041,120]
[377171617,1754266285598,-400.0,0.0005041,120]
[377171618,1754266285607,-438.37,0.0005041,120]
[377171619,1754266285616,-463.0,0.0005041,120]
[377171620,1754266285628,-400.0,0.0005041,120]
[377171621,1754266285637,-529.56,0.0005041,120]
[377171622,1754266285648,-400.0,0.0005041,120]
[377171623,1754266285658,-400.0,0.0005041,120]
[377171624,1754266285668,-698.43,0.0005041,120]
[377171625,1754266285677,-546.99,0.0005041,120]
[377171626,1754266285686,-400.0,0.0005041,120]
[377171627,1754266285695,-613.18,0.0005041,120]
[377171628,1754266285704,-706.54,0.0005041,120]
[377171629,1754266285714,-400.0,0.0005041,120]
[377171630,1754266285723,-400.0,0.0005041,120]
[377171631,1754266285732,-756.53,0.0005041,120]
[377171632,1754266285741,-918.39,0.0005041,120]
[377171633,1754266285751,-400.0,0.0005041,120]
[377171634,1754266285762,-180.62623369,0.0005041,120]
[377171635,1754266285771,-400.0,0.0005041,120]
[377171636,1754266285780,-400.0,0.0005041,120]
[377171637,1754266285790,-400.0,0.0005041,120]
[377171638,1754266285799,-363.58660052,0.0005041,120]
[377171639,1754266285809,-725.35,0.0005041,120]
[377171640,1754266285818,-415.19,0.0005041,120]
[377171641,1754266285827,-416.39063809,0.0005041,120]
[377171642,1754266285836,-543.93,0.0005041,120]
[377171643,1754266285845,-400.0,0.0005041,120]
[377171644,1754266285855,-429.97,0.0005041,120]
[377171645,1754266285864,-587.28,0.0005041,120]
[377171646,1754266285873,-400.0,0.0005041,120]
[377171647,1754266285882,-483.4,0.0005041,120]
[377171648,1754266285891,-602.09,0.0005041,120]
[377171649,1754266285900,-1138.42,0.0005041,120]
[377171650,1754266285909,-400.0,0.0005041,120]
[377171651,1754266285918,-534.14,0.0005041,120]
[377171652,1754266285927,-400.0,0.0005041,120]
[377171653,1754266285936,-400.0,0.0005041,120]
[377171654,1754266285945,-400.0,0.0005041,120]
[377171655,1754266285954,-713.71,0.0005041,120]
[377171656,1754266285964,-1102.62,0.0005041,120]
[377171657,1754266285973,-867.69,0.0005041,120]
[377171658,1754266285983,-592.34,0.0005041,120]
[377171659,1754266285992,-575.69,0.0005041,120]
[377171660,1754266286001,-622.42,0.0005041,120]
[377171661,1754266286011,-700.23,0.0005041,120]
[377171662,1754266286020,-704.07,0.0005041,120]
[377171663,1754266286029,-730.21,0.0005041,120]
[377171664,1754266286039,-152.92817433,0.0005041,120]
[377171665,1754266286048,-400.0,0.0005041,120]
[377171666,1754266286061,-400.0,0.0005041,120]
[377171667,1754266286071,-657.6,0.0005041,120]
[377171668,1754266286080,-400.0,0.0005041,120]
[377171669,1754266286089,-400.0,0.0005041,120]
[377171670,1754266286098,-596.56,0.0005041,120]
[377171671,1754266286107,-595.96,0.0005041,120]
[377171672,1754266286117,-400.0,0.0005041,120]
[377171673,1754266286126,-400.0,0.0005041,120]
[377171674,1754266286135,-400.0,0.0005041,120]
[377171675,1754266286144,-400.0,0.0005041,120]
[377171676,1754266286153,-400.0,0.0005041,120]
[377171677,1754266286163,-606.08,0.0005041,120]
[377171678,1754266286171,-844.81,0.0005041,120]
[377171679,1754266286181,-991.17,0.0005041,120]
[377171680,1754266286190,-151.0,0.0005041,120]
[377171681,1754266286203,-151.0,0.0005041,120]
[377171682,1754266286212,-407.92,0.0005041,120]
[377171683,1754266286221,-400.0,0.0005041,120]
[377171684,1754266286230,-400.0,0.0005041,120]
[377171685,1754266286240,-400.0,0.0005041,120]
[377171686,1754266286250,-400.0,0.0005041,120]
[377171687,1754266286260,-426.56,0.0005041,120]
[377171688,1754266286272,-400.0,0.0005041,120]
[377171689,1754266286281,-1080.54,0.0005041,120]
[377171690,1754266286290,-400.0,0.0005041,120]
[377171691,1754266286300,-321.97260383,0.0005041,120]
[377171692,1754266286309,-400.0,0.0005041,120]
[377171693,1754266286319,-1262.38,0.0005041,120]
[377171694,1754266286328,-522.28,0.0005041,120]
[377171695,1754266286337,-400.0,0.0005041,120]
[377171696,1754266286346,-975.3,0.0005041,120]
[377171697,1754266286356,-527.59,0.0005041,120]
[377171698,1754266286366,-400.0,0.0005041,120]
[377171699,1754266286375,-899.43,0.0005041,120]
[377171700,1754266286388,-400.0,0.0005041,120]
[377171701,1754266286398,-400.0,0.0005041,30]
[377171702,1754266286408,-624.85,0.0005041,120]
[377171703,1754266286418,-682.22,0.0005041,120]
[377171704,1754266286427,-400.0,0.0005041,120]
[377171705,1754266286436,-400.0,0.0005041,120]
[377171706,1754266286446,-445.01,0.0005041,120]
[377171707,1754266286455,-1206.85,0.0005041,120]
[377171708,1754266286464,-400.0,0.0005041,120]
[377171709,1754266286474,-400.0,0.0005041,120]
[377171710,1754266286484,-478.87365059,0.0005041,120]
[377171711,1754266286622,-841.86,0.0005041,120]
[377171712,1754266286632,-400.0,0.0005041,120]
[377171713,1754266286642,-400.0,0.0005041,120]
[377171714,1754266286652,-986.7,0.0005041,120]
[377171715,1754266286661,-400.0,0.0005041,120]
[377171716,1754266286670,-151.0,0.0005041,120]
[377171717,1754266286680,-462.48,0.0005041,120]
[377171718,1754266286689,-875.08,0.0005041,120]
[377171719,1754266286699,-400.0,0.0005041,120]
[377171720,1754266286709,-809.38,0.0005041,120]
[377171721,1754266286718,-546.26,0.0005041,120]
[377171722,1754266286728,-151.0,0.0005041,120]
[377171723,1754266286737,-874.57,0.0005041,120]
[377171724,1754266286748,-3895.82,0.0005041,120]
[377171725,1754266286757,-446.14,0.0005041,120]
[377171726,1754266286767,-826.95,0.0005041,2]
[377171727,1754266286776,-400.0,0.0005041,120]
[377171728,1754266286786,-712.49,0.0005041,120]
[377171729,1754266286796,-400.0,0.0005041,120]
[377171730,1754266286805,-400.0,0.0005041,7]
[377171731,1754266286816,-744.58,0.0005041,120]
[377171732,1754266286827,-400.0,0.0005041,120]
[377171733,1754266286838,-400.0,0.0005041,120]
[377171734,1754266286850,-400.0,0.0005041,120]
[377171735,1754266286863,-400.0,0.0005041,120]
[377171736,1754266286873,-548.48,0.0005041,120]
[377171737,1754266286883,-400.0,0.0005041,120]
[377171738,1754266286892,-400.0,0.0005041,120]
[377171739,1754266286901,-400.0,0.0005041,120]
[377171740,1754266286911,-400.0,0.0005041,120]
[377171741,1754266286920,-611.64,0.0005041,120]
[377171742,1754266286930,-604.74,0.0005041,120]
[377171743,1754266286939,-660.69,0.0005041,120]
[377171744,1754266286949,-348.01171787,0.0005041,120]
[377171745,1754266286959,-400.0,0.0005041,120]
[377171746,1754266286968,-400.0,0.0005041,120]
[377171747,1754266286977,-400.0,0.0005041,120]
[377171748,1754266286986,-400.0,0.0005041,120]
[377171749,1754266286996,-400.0,0.0005041,120]
[377171750,1754266287005,-1483.13,0.0005041,120]
[377171751,1754266287015,-1412.34,0.0005041,120]
[377171752,1754266287024,-400.0,0.0005041,120]
[377171753,1754266287034,-400.0,0.0005041,120]
[377171754,1754266287043,-1096.77,0.0005041,120]
[377171755,1754266287052,-400.0,0.0005041,120]
[377171756,1754266287062,-400.0,0.0005041,120]
[377171757,1754266287071,-1008.09,0.0005041,120]
[377171758,1754266287080,-400.0,0.0005041,120]
[377171759,1754266287090,-400.0,0.0005041,120]
[377171760,1754266287099,-435.47,0.0005041,120]
[377171761,1754266287109,-732.16,0.0005041,120]
[377171762,1754266287119,-787.39,0.0005041,120]
[377171763,1754266287128,-400.0,0.0005041,120]
[377171764,1754266287138,-400.0,0.0005041,120]
[377171765,1754266287148,-495.52,0.0005041,120]
[377171766,1754266287158,-400.0,0.0005041,120]
[377171767,1754266287168,-755.04,0.0005041,120]
[377171768,1754266287179,-400.0,0.0005041,120]
[377171769,1754266287190,-980.28,0.0005041,120]
[377171770,1754266287208,-713.47,0.0005041,120]
[377171771,1754266287218,-465.47,0.0005041,120]
[377171772,1754266287228,-486.82,0.0005041,120]
[377171773,1754266287239,-514.06,0.0005041,120]
[377171774,1754266287248,-400.0,0.0005041,120]
[377171775,1754266287261,-414.45,0.0005041,120]
[377171776,1754266287271,-400.0,0.0005041,120]
[377171777,1754266287281,-400.0,0.0005041,120]
[377171778,1754266287290,-400.0,0.0005041,120]
[377171779,1754266287300,-400.0,0.0005041,120]
[377171780,1754266287310,-792.77,0.0005041,120]
[377171781,1754266287319,-981.8,0.0005041,120]
[377171782,1754266287329,-400.0,0.0005041,120]
[377171783,1754266287339,-400.0,0.0005041,120]
[377171784,1754266287349,-400.0,0.0005041,120]
[377171785,1754266287359,-400.0,0.0005041,120]
[377171786,1754266287368,-956.64,0.0005041,120]
[377171787,1754266287378,-724.66,0.0005041,120]
[377171788,1754266287387,-428.13,0.0005041,120]
[377171789,1754266287397,-525.48,0.0005041,120]
[377171790,1754266287406,-622.39,0.0005041,120]
[377171791,1754266287416,-510.92,0.0005041,120]
[377171792,1754266287426,-879.31,0.0005041,120]
[377171793,1754266287435,-400.0,0.0005041,120]
[377171794,1754266287445,-400.0,0.0005041,120]
[377171795,1754266287455,-400.0,0.0005041,120]
[377171796,1754266287465,-749.13,0.0005041,120]
[377171797,1754266287474,-400.0,0.0005041,120]
[377171798,1754266287484,-414.07,0.0005041,120]
[377171799,1754266287493,-400.0,0.0005041,120]
[377171800,1754266287503,-1211.33,0.0005041,120]
[377171801,1754266287515,-400.0,0.0005041,120]
[377171802,1754266287525,-565.42,0.0005041,120]
[377171803,1754266287534,-309.89075557,0.0005041,120]
[377171804,1754266287543,-400.0,0.0005041,120]
[377171805,1754266287553,-400.0,0.0005041,120]
[377171806,1754266287562,-400.0,0.0005041,120]
[377171807,1754266287572,-627.86,0.0005041,120]
[377171808,1754266287582,-400.0,0.0005041,120]
[377171809,1754266287591,-641.45,0.0005041,120]
[377171810,1754266287601,-1018.34,0.0005041,120]
[377171811,1754266287611,-400.0,0.0005041,120]
[377171812,1754266287620,-689.84,0.0005041,120]
[377171813,1754266287630,-456.99,0.0005041,120]
[377171814,1754266287640,-1009.49,0.0005041,120]
[377171815,1754266287650,-400.0,0.0005041,120]
[377171816,1754266287659,-574.89,0.0005041,120]
[377171817,1754266287668,-400.0,0.0005041,120]
[377171818,1754266287678,-400.0,0.0005041,120]
[377171819,1754266287688,-804.57,0.0005041,120]
[377171820,1754266287698,-400.0,0.0005041,120]
[377171821,1754266287708,-611.13,0.0005041,120]
[377171822,1754266287717,-429.9274205,0.0005041,120]
[377171823,1754266287727,-400.0,0.0005041,120]
[377171824,1754266287737,-1183.69,0.0005041,120]
[377171825,1754266287755,-594.33,0.0005041,120]
[377171826,1754266287766,-940.95,0.0005041,120]
[377171827,1754266287786,-421.41,0.0005041,120]
[377171828,1754266287796,-704.1,0.0005041,120]
[377171829,1754266287806,-901.35,0.0005041,120]
[377171830,1754266287816,-950.98,0.0005041,120]
[377171831,1754266287825,-1019.94,0.0005041,120]
[377171832,1754266287835,-657.96,0.0005041,120]
[377171833,1754266287844,-632.37,0.0005041,120]
[377171834,1754266287854,-400.0,0.0005041,120]
[377171835,1754266287863,-400.0,0.0005041,120]
[377171836,1754266287873,-687.15,0.0005041,120]
[377171837,1754266287883,-400.0,0.0005041,120]
[377171838,1754266287892,-557.5,0.0005041,120]
[377171839,1754266287902,-400.0,0.0005041,120]
[377171840,1754266287911,-992.38,0.0005041,120]
[377171841,1754266287921,-529.68,0.0005041,120]
[377171842,1754266287930,-1191.75,0.0005041,120]
[377171843,1754266287940,-1612.16,0.0005041,120]
[377171844,1754266287949,-650.27,0.0005041,120]
[377171845,1754266287959,-400.0,0.0005041,120]
[377171846,1754266287969,-872.85,0.0005041,120]
[377171847,1754266287979,-549.06,0.0005041,120]
[377171848,1754266287989,-808.65,0.0005041,120]
[377171849,1754266287998,-881.83,0.0005041,120]
[377171850,1754266288008,-293.18109723,0.0005041,120]
[377171851,1754266288018,-400.0,0.0005041,120]
[377171852,1754266288027,-616.24,0.0005041,120]
[377171853,1754266288037,-400.0,0.0005041,120]
[377171854,1754266288046,-400.0,0.0005041,120]
[377171855,1754266288056,-185.30406809,0.0005041,120]
[377171856,1754266288065,-400.0,0.0005041,120]
[377171857,1754266288075,-927.89,0.0005041,120]
[377171858,1754266288084,-996.8,0.0005041,120]
[377171859,1754266288094,-4720.31,0.0005041,120]
[377171860,1754266288103,-458.53,0.0005041,120]
[377171861,1754266288113,-461.86,0.0005041,120]
[377171862,1754266288122,-480.32,0.0005041,120]
[377171863,1754266288131,-400.0,0.0005041,120]
[377171864,1754266288141,-4894.61,0.0005041,120]
[377171865,1754266288151,-925.44,0.0005041,120]
[377171866,1754266288161,-400.0,0.0005041,120]
[377171867,1754266288170,-400.0,0.0005041,120]
[377171868,1754266288180,-674.67,0.0005041,120]
[377171869,1754266288190,-816.6,0.0005041,120]
[377171870,1754266288203,-1033.94,0.0005041,120]
[377171871,1754266288213,-400.0,0.0005041,120]
[377171872,1754266288222,-925.44,0.0005041,120]
[377171873,1754266288232,-151.0,0.0005041,120]
[377171874,1754266288242,-196.159013,0.0005041,120]
[377171875,1754266288252,-400.0,0.0005041,120]
[377171876,1754266288262,-400.0,0.0005041,120]
[377171877,1754266288274,-698.79,0.0005041,120]
[377171878,1754266288285,-151.0,0.0005041,120]
[377171879,1754266288294,-196.159013,0.0005041,120]
[377171880,1754266288304,-151.0,0.0005041,120]
[377171881,1754266288313,-1162.3,0.0005041,120]
[377171882,1754266288323,-536.25,0.0005041,120]
[377171883,1754266288332,-500.27603706,0.0005041,120]
[377171884,1754266288342,-769.97,0.0005041,120]
[377171885,1754266288351,-400.0,0.0005041,120]
[377171886,1754266288361,-833.01,0.0005041,120]
[377171887,1754266288370,-400.0,0.0005041,120]
[377171888,1754266288379,-453.6,0.0005041,120]
[377171889,1754266288389,-400.0,0.0005041,120]
[377171890,1754266288398,-400.0,0.0005041,120]
[377171891,1754266288408,-1111.54,0.0005041,120]
[377171892,1754266288417,-556.87,0.0005041,120]
[377171893,1754266288427,-400.0,0.0005041,120]
[377171894,1754266288437,-1730.61,0.0005041,120]
[377171895,1754266288446,-400.0,0.0005041,120]
[377171896,1754266288456,-899.69,0.0005041,120]
[377171897,1754266288466,-732.85,0.0005041,120]
[377171898,1754266288475,-590.27,0.0005041,120]
[377171899,1754266288486,-901.32,0.0005041,120]
[377171900,1754266288496,-901.95,0.0005041,120]
[377171901,1754266288505,-400.0,0.0005041,120]
[377171902,1754266288515,-723.26,0.0005041,120]
[377171903,1754266288524,-400.0,0.0005041,120]
[377171904,1754266288535,-1592.92,0.0005041,120]
[377171905,1754266288545,-673.26,0.0005041,120]
[377171906,1754266288555,-1461.35,0.0005041,120]
[377171907,1754266288564,-400.0,0.0005041,120]
[377171908,1754266288574,-400.0,0.0005041,120]
[377171909,1754266288583,-412.28,0.0005041,60]
[377171910,1754266288593,-706.22,0.0005041,120]
[377171911,1754266288602,-1601.2,0.0005041,120]
[377171912,1754266288611,-400.0,0.0005041,120]
[377171913,1754266288620,-400.0,0.0005041,120]
[377171914,1754266288629,-400.0,0.0005041,120]
[377171915,1754266288639,-400.0,0.0005041,120]
[377171916,1754266288649,-400.0,0.0005041,120]
[377171917,1754266288659,-912.88,0.0005041,120]
[377171918,1754266288669,-400.0,0.0005041,120]
[377171919,1754266288679,-949.81,0.0005041,120]
[377171920,1754266288688,-400.0,0.0005041,120]
[377171921,1754266288697,-1484.94,0.0005041,120]
[377171922,1754266288708,-1173.53,0.0005041,120]
[377171923,1754266288718,-400.0,0.0005041,120]
[377171924,1754266288727,-2314.15,0.0005041,120]
[377171925,1754266288737,-492.77,0.0005041,120]
[377171926,1754266288746,-400.0,0.0005041,120]
[377171927,1754266288758,-1462.45,0.0005041,120]
[377171928,1754266288768,-400.0,0.0005041,120]
[377171929,1754266288778,-1400.23,0.0005041,120]
[377171930,1754266288788,-647.53,0.0005041,120]
[377171931,1754266288798,-1068.21,0.0005041,120]
[377171932,1754266288808,-5234.91,0.0005041,120]
[377171933,1754266288818,-1341.89,0.0005041,120]
[377171934,1754266288827,-400.0,0.0005041,120]
[377171935,1754266288837,-300.0,0.0005041,120]
[377171936,1754266288846,-1331.67,0.0005041,120]
[377171937,1754266288855,-1328.2,0.0005041,120]
[377171938,1754266288865,-400.0,0.0005041,120]
[377171939,1754266288874,-1001.16,0.0005041,120]
[377171940,1754266288883,-1119.42,0.0005041,120]
[377171941,1754266289194,-571.91,0.0005041,120]
[377171942,1754266289220,-955.48,0.0005041,120]
[377171943,1754266289230,-1005.19,0.0005041,120]
[377171944,1754266289241,-1578.35,0.0005041,120]
[377171945,1754266289251,-598.03,0.0005041,120]
[377171946,1754266289263,-675.29,0.0005041,120]
[377171947,1754266289274,-409.14,0.0005041,120]
[377171948,1754266289284,-400.0,0.0005041,120]
[377171949,1754266289294,-400.0,0.0005041,120]
[377171950,1754266289304,-817.11,0.0005041,120]
[377171951,1754266289314,-870.48,0.0005041,120]
[377171952,1754266289323,-400.0,0.0005041,120]
[377171953,1754266289333,-400.0,0.0005041,120]
[377171954,1754266289342,-1073.59,0.0005041,120]
[377171955,1754266289352,-523.8,0.0005041,120]
[377171956,1754266289362,-653.93,0.0005041,120]
[377171957,1754266289371,-524.6,0.0005041,120]
[377171958,1754266289382,-493.21,0.0005041,120]
[377171959,1754266289391,-400.0,0.0005041,120]
[377171960,1754266289401,-1126.78,0.0005041,120]
[377171961,1754266289411,-400.0,0.0005041,120]
[377171962,1754266289421,-1000.0,0.0005041,120]
[377171963,1754266289431,-415.07,0.0005041,120]
[377171964,1754266289441,-604.01,0.0005041,120]
[377171965,1754266289451,-534.65,0.0005041,120]
[377171966,1754266289467,-977.29,0.0005041,120]
[377171967,1754266289479,-522.8926626,0.0005041,120]
[377171968,1754266289488,-403.6032022,0.0005041,120]
[377171969,1754266289498,-400.0,0.0005041,120]
[377171970,1754266289510,-1489.88,0.0005041,120]
[377171971,1754266289519,-400.0,0.0005041,120]
[377171972,1754266289529,-400.0,0.0005041,120]
[377171973,1754266289538,-170.762059,0.0005041,120]
[377171974,1754266289556,-400.0,0.0005041,120]
[377171975,1754266289569,-400.0,0.0005041,120]
[377171976,1754266289580,-400.0,0.0005041,120]
[377171977,1754266289589,-400.0,0.0005041,120]
[377171978,1754266289599,-474.72,0.0005041,120]
[377171979,1754266289610,-581.15,0.0005041,120]
[377171980,1754266289620,-438.5,0.0005041,120]
[377171981,1754266289631,-170.762059,0.0005041,120]
[377171982,1754266289641,-5373.27,0.0005041,120]
[377171983,1754266289654,-400.0,0.0005041,120]
[377171984,1754266289664,-400.0,0.0005041,120]
[377171985,1754266289674,-721.19,0.0005041,120]
[377171986,1754266289684,-3835.37,0.0005041,120]
[377171987,1754266289694,-834.22,0.0005041,120]
[377171988,1754266289704,-716.24,0.0005041,120]
[377171989,1754266289714,-1134.6,0.0005041,120]
[377171990,1754266289725,-400.0,0.0005041,120]
[377171991,1754266289735,-400.0,0.0005041,120]
[377171992,1754266289746,-1049.57,0.0005041,120]
[377171993,1754266289758,-400.0,0.0005041,120]
[377171994,1754266289768,-400.0,0.0005041,120]
[377171995,1754266289778,-400.0,0.0005041,120]
[377171996,1754266289789,-587.26,0.0005041,120]
[377171997,1754266289805,-2012.25,0.0005041,120]
[377171998,1754266289816,-400.0,0.0005041,120]
[377171999,1754266289827,-225.90305876,0.0005041,120]
[377172000,1754266289838,-539.14,0.0005041,120]
[377172001,1754266289848,-400.0,0.0005041,120]
[377172002,1754266289858,-567.39,0.0005041,120]
[377172003,1754266289868,-1390.5,0.0005041,120]
[377172004,1754266289878,-400.0,0.0005041,120]
[377172005,1754266289888,-1877.89,0.0005041,120]
[377172006,1754266289898,-682.42,0.0005041,120]
[377172007,1754266289907,-400.0,0.0005041,120]
[377172008,1754266289917,-891.04,0.0005041,120]
[377172009,1754266289927,-400.0,0.0005041,120]
[377172010,1754266289936,-400.0,0.0005041,120]
[377172011,1754266289946,-808.31,0.0005041,120]
[377172012,1754266289956,-400.0,0.0005041,120]
[377172013,1754266289966,-476.3,0.0005041,120]
[377172014,1754266289976,-176.65916918,0.0005041,120]
[377172015,1754266289986,-400.0,0.0005041,120]
[377172016,1754266289996,-538.34,0.0005041,120]
[377172017,1754266290008,-1187.72,0.0005041,120]
[377172018,1754266290018,-170.38081754,0.0005041,120]
[377172019,1754266290028,-965.14,0.0005041,120]
[377172020,1754266290038,-419.41,0.0005041,120]
[377172021,1754266290049,-400.0,0.0005041,120]
[377172022,1754266290058,-417.19,0.0005041,120]
[377172023,1754266290068,-400.0,0.0005041,120]
[377172024,1754266290078,-400.0,0.0005041,120]
[377172025,1754266290088,-1401.09,0.0005041,14]
[377172026,1754266290098,-400.0,0.0005041,120]
[377172027,1754266290108,-400.0,0.0005041,120]
[377172028,1754266290118,-400.0,0.0005041,120]
[377172029,1754266290128,-721.72,0.0005041,120]
[377172030,1754266290138,-400.0,0.0005041,120]
[377172031,1754266290147,-400.0,0.0005041,120]
[377172032,1754266290157,-442.99959503,0.0005041,120]
[377172033,1754266290166,-1155.19,0.0005041,120]
[377172034,1754266290176,-400.0,0.0005041,120]
[377172035,1754266290186,-400.0,0.0005041,120]
[377172036,1754266290198,-723.66,0.0005041,120]
[377172037,1754266290208,-439.33,0.0005041,120]
[377172038,1754266290217,-400.0,0.0005041,120]
[377172039,1754266290227,-1229.41,0.0005041,120]
[377172040,1754266290237,-400.0,0.0005041,120]
[377172041,1754266290248,-400.0,0.0005041,120]
[377172042,1754266290261,-400.0,0.0005041,120]
[377172043,1754266290273,-400.0,0.0005041,120]
[377172044,1754266290285,-1673.0,0.0005041,120]
[377172045,1754266290297,-473.61,0.0005041,120]
[377172046,1754266290310,-699.31,0.0005041,120]
[377172047,1754266290322,-510.4,0.0005041,120]